Cogmind - Beta 13 X1 @@@ ROGUE MODE // 2023.10.17 @ 15:15:21 // Winter2022/Polymind Player: f3-rnm Result: Destroyed by Y-64 Sentinel with KE Penetrator Performance ------------- Evolutions (6) 3000 Regions Visited (8) 1600 Robots Destroyed (66) 330 Value Destroyed (2226) 2226 Prototype IDs (0) 0 Alien Tech Used (0) 0 Bonus (3339) 3339 TOTAL SCORE: 10355 Bonus ------- Polymind Skill 3059 Pacifist 200 High Alert Combat Kills 80 Cogmind --------- Core Integrity 0/1150 Matter 100/100 Energy 23/25 System Corruption 0% Temperature Cool (9) Movement Core (50) Location -4/Factory Parts ------- > --- POWER (1) -------- (None) > --- PROPULSION (2) --- (None) > --- UTILITY (1) ------ Medium Matter Pod > --- WEAPON (0) ------- (None) > --- INVENTORY (1) ---- (None) Peak State ------------ > --- POWER ------------ Neutrino Core > --- PROPULSION ------- Improved Treads Improved Treads > --- UTILITY ---------- Advanced Heat Sink Advanced Heat Sink Improved Medium Armor Plating > --- WEAPON ----------- Wave Gun KE Penetrator > --- INVENTORY -------- (None) [Rating: 36] Favorites ----------- Power Improved Ion Engine Engine Improved Ion Engine Power Core Light Nuclear Core Reactor Light Antimatter Reactor Propulsion Light Treads Treads Light Treads Leg Carbon-fiber Leg Wheel Wheel Hover Unit Antigrav System Flight Unit VTOL Module Utility Heat Sink Device Heat Sink Storage Small Matter Pod Processor Targeting Computer Hackware Hacking Suite Protection Light Armor Plating Weapon Beam Rifle Energy Gun Beam Rifle Ballistic Gun Heavy Assault Rifle Special Weapon Mining Laser Special Melee Weapon Datajack Build | -11 -10 -10 -9 -8 -7 -6 -5 -4 ------- Run | Jun Mat Min Mat Mat Fac Fac Fac Fac Slots Evolved . | . . . . . . . . . Power . | . . . . . . . . . Propulsion . | . . . . . . . . . Utility . | . . . . . . . . . Weapon . | . . . . . . . . . Parts Attached . | . . . . . . . . . Power . | . . . . . . . . . Engine . | . . . . . . . . . Core . | . . . . . . . . . Reactor . | . . . . . . . . . Propulsion . | . . . . . . . . . Treads . | . . . . . . . . . Leg . | . . . . . . . . . Wheel . | . . . . . . . . . Hover . | . . . . . . . . . Flight . | . . . . . . . . . Utility . | . . . . . . . . . Device . | . . . . . . . . . Storage . | . . . . . . . . . Processor . | . . . . . . . . . Hackware . | . . . . . . . . . Protection . | . . . . . . . . . Artifact . | . . . . . . . . . Weapon . | . . . . . . . . . Energy Gun . | . . . . . . . . . Energy Cannon . | . . . . . . . . . Ballistic Gun . | . . . . . . . . . Ballistic Cannon . | . . . . . . . . . Launcher . | . . . . . . . . . Special Weapon . | . . . . . . . . . Impact Weapon . | . . . . . . . . . Slashing Weapon . | . . . . . . . . . Piercing Weapon . | . . . . . . . . . Special Melee Weapon . | . . . . . . . . . Unidentified Prototypes . | . . . . . . . . . Parts Lost 39 | . . . 7 5 . 5 6 16 Power 8 | . . . 2 1 . 1 1 3 Propulsion 13 | . . . 1 2 . 1 2 7 Utility 9 | . . . 2 . . 2 2 3 Weapon 9 | . . . 2 2 . 1 1 3 Highest Loss Streak 6 | . . . 3 3 . 3 6 6 To Critical Strikes . | . . . . . . . . . Average Slot Usage (%) 88 | . 100 100 95 71 50 91 72 84 Engine 9 | . 16 16 12 2 . 10 8 . Treads 18 | . . . 21 3 12 23 15 8 Wheel 3 | . 33 33 3 . . . . 1 Hover 1 | . . . . 1 . . . 14 Flight 2 | . . . 1 6 . . 12 1 Device 20 | . 33 33 21 4 25 24 8 15 Processor 1 | . . . . 9 . . . 14 Protection 7 | . . . 9 1 . 10 7 3 Energy Gun 8 | . . . 10 2 12 10 7 4 Ballistic Gun 9 | . . . 11 22 . 10 6 4 Naked Turns 107 | . 6 . 4 33 . 15 32 17 Heaviest Build 33 | . 6 6 18 18 5 23 18 33 Greatest Support 46 | 3 20 20 40 40 20 40 40 46 Greatest Overweight (x) 2 | . . . . . . . . 2 Average Overweight (x) . | . . . . . . . . . Largest Inventory Capacity 1 | . . . 1 1 1 1 1 1 Average Capacity . | . . . . . 1 . . . Most Carried 1 | . . . . 1 1 1 . . Average Carried . | . . . . . 1 . . . Final Capacity 1 | . . . . 1 1 1 . 1 Final Carried 1 | . . . . 1 1 . . . Class Distribution -------------------- 77% | Sentry 5% | Tunneler 4% | Swarmer 3% | Hunter 3% | Watcher Dominant Class ---------------- Tunneler | -10/Materials Tunneler | -10/Mines Sentry | -9/Materials Hunter | -8/Materials Sentry | -7/Factory Sentry | -6/Factory Sentry | -5/Factory Watcher | -4/Factory Resources | -11 -10 -10 -9 -8 -7 -6 -5 -4 ----------- Run | Jun Mat Min Mat Mat Fac Fac Fac Fac Matter Collected 537 | . . . 139 144 . 122 32 100 Remotely . | . . . . . . . . . Salvage Created 2299 | . . . 856 435 . 397 72 539 Parts 141 | . . . 47 21 . 29 8 36 Haulers Intercepted . | . . . . . . . . . Recyclers Shooed 4 | . . . . 1 . 1 . 2 Parts Field Recycled . | . . . . . . . . . Retrieved Matter . | . . . . . . . . . Parts Self-Destructed . | . . . . . . . . . Prevented . | . . . . . . . . . Kills | -11 -10 -10 -9 -8 -7 -6 -5 -4 ------- Run | Jun Mat Min Mat Mat Fac Fac Fac Fac Combat Hostiles Destroyed 57 | . . . 21 8 . 14 4 10 Guns 56 | . . . 21 8 . 13 4 10 AOE 1 | . . . . . . 1 . . Classes Destroyed 9 | . . . 5 2 . 2 . . Worker 3 | . . . 1 . . . . 2 Builder 2 | . . . . . . 1 . 1 Recycler 3 | . . . . 2 . . . 1 Watcher 1 | . . . 1 . . . . . Swarmer 23 | . . . 7 1 . 7 3 5 Grunt 15 | . . . 8 4 . . . 3 Sentry 14 | . . . 6 2 . 5 1 . Hunter 3 | . . . . 1 . . . 2 Programmer 2 | . . . . . . 2 . . Best Kill Streak 8 | . . . 4 5 . 4 3 8 Combat Bots Only 5 | . . . 4 3 . 4 3 5 Max Kills in Single Turn 2 | . . . 1 1 . 1 1 2 Gunslinging . | . . . . . . . . . Exploded 1 | . . . . . . 1 . . Melee . | . . . . . . . . . Uniques/NPCs Destroyed . | . . . . . . . . . Combat | -11 -10 -10 -9 -8 -7 -6 -5 -4 -------- Run | Jun Mat Min Mat Mat Fac Fac Fac Fac Damage Taken 7931 | . . . 1092 833 . 1764 899 3343 Core 2714 | . . . 248 268 . 550 478 1170 Absorbed by Shields . | . . . . . . . . . Ignored by Resistances 114 | . . . . 75 . 39 . . Core Remaining (%) 68 | 100 . 100 38 51 100 35 52 . Volleys Fired 243 | . . . 83 35 2 53 31 39 Largest 2 | . . . 2 2 1 2 1 2 Hottest 114 | . . . 79 79 56 108 80 114 Shots Fired 375 | . . . 129 64 2 73 31 76 Gun 375 | . . . 129 64 2 73 31 76 Cannon . | . . . . . . . . . Launcher . | . . . . . . . . . Special . | . . . . . . . . . Kinetic 247 | . . . 71 62 . 49 28 37 Thermal 128 | . . . 58 2 2 24 3 39 Explosive . | . . . . . . . . . Electromagnetic . | . . . . . . . . . Robot Hit Streak 18 | . . . 18 14 9 16 10 7 Robot Miss Streak 14 | . . . 4 3 1 14 3 5 Penetration Max 1 | . . . . 1 . . . 1 Secondary Targets 4 | . . . 1 2 . . . 1 Max Gunslinging Chain 1 | . . . 1 1 . . . 1 Shots Hit Robots 259 | . . . 84 46 1 61 23 44 Core Hits 164 | . . . 34 21 . 67 15 27 Critical Kills 2 | . . . . . . . . 2 Critical Parts Destroyed 1 | . . . . . . . . 1 Critical Strikes 9 | . . . 3 . . . . 6 Burn 6 | . . . 3 . . . . 3 Destroy 3 | . . . . . . . . 3 Melee Attacks 1 | . . . . 1 . . . . Impact . | . . . . . . . . . Slashing . | . . . . . . . . . Piercing . | . . . . . . . . . Sneak Attacks 1 | . . . . 1 . . . . Combat Hostiles 1 | . . . . 1 . . . . Follow-up Attacks . | . . . . . . . . . Damage Inflicted 4813 | . . . 1134 742 14 1134 428 1361 Guns 4728 | . . . 1134 742 14 1105 397 1336 Cannons . | . . . . . . . . . Explosions . | . . . . . . . . . Melee . | . . . . . . . . . Ramming 85 | . . . . . . 29 31 25 Kinetic 3037 | . . . 615 710 . 646 320 746 Thermal 1691 | . . . 519 32 14 459 77 590 Explosive . | . . . . . . . . . Electromagnetic . | . . . . . . . . . Impact . | . . . . . . . . . Slashing . | . . . . . . . . . Piercing . | . . . . . . . . . Highest Corruption 3 | . . . . . . 1 3 . Average Corruption 1 | . . . . . . 1 1 . Corruption Purged . | . . . . . . . . . Corruption Blocked . | . . . . . . . . . Effects 3 | . . . . . . . 3 . Message Errors 1 | . . . . . . . 1 . Heat Flow Errors 1 | . . . . . . . 1 . Energy Discharges 1 | . . . . . . . 1 . Overload Shots . | . . . . . . . . . Overflow Damage . | . . . . . . . . . Projectiles . | . . . . . . . . . Explosions . | . . . . . . . . . Melee . | . . . . . . . . . Knockbacks 1 | . . . . . . . . 1 Impact 1 | . . . . . . . . 1 Kinetic . | . . . . . . . . . Secondary . | . . . . . . . . . Self-Inflicted Damage 26 | . . . . . . 6 9 11 Shots . | . . . . . . . . . Rammed 27 | . . . 1 . . 5 16 5 Targets Rammed 27 | . . . 1 . . 5 16 5 Kicked . | . . . . . . . . . Crushed . | . . . . . . . . . Highest Temperature 488 | . . . 306 62 . 244 275 488 Average Temperature 65 | . . . 65 14 . 51 64 90 Received Heat Transfer 1575 | . . . 402 405 . 246 117 405 Effects 2 | . . . . . . . 1 1 Shutdowns 1 | . . . . . . . . 1 Energy Bleed 1 | . . . . . . . 1 . Siege Activations . | . . . . . . . . . Robots Corrupted . | . . . . . . . . . Combat Hostiles . | . . . . . . . . . Parts Fried . | . . . . . . . . . Impact Corruptions . | . . . . . . . . . Robots Melted . | . . . . . . . . . Combat Hostiles . | . . . . . . . . . Parts Melted 6 | . . . 2 . . 1 . 3 Heat Transferred 3838 | . . . 1517 74 37 925 175 1110 Parts Sabotaged . | . . . . . . . . . Parts Stolen . | . . . . . . . . . Parts Stripped . | . . . . . . . . . Power Chain Reactions . | . . . . . . . . . Missiles Intercepted . | . . . . . . . . . Alert | -11 -10 -10 -9 -8 -7 -6 -5 -4 ------- Run | Jun Mat Min Mat Mat Fac Fac Fac Fac Peak Influence 482 | . . . 404 475 215 240 206 482 Initial 215 | . . . . 170 215 105 56 100 Average 111 | . . . 70 368 215 83 85 261 Maximum Alert Level 2 | . . . 2 2 1 1 1 2 Low Security (%) 79 | 100 100 100 87 4 . 96 95 49 Level 1 15 | . . . 11 40 100 3 4 36 Level 2 4 | . . . . 54 . . . 14 Level 3 . | . . . . . . . . . Level 4 . | . . . . . . . . . Level 5 . | . . . . . . . . . High Security . | . . . . . . . . . Max Security . | . . . . . . . . . Squads Dispatched 13 | . . . 3 1 . 7 1 1 Investigation 3 | . . . 1 . . 1 1 . Extermination 2 | . . . . . . 2 . . Reinforcement 5 | . . . 2 1 . 1 . 1 Assault . | . . . . . . . . . Garrison 3 | . . . . . . 3 . . Intercept . | . . . . . . . . . Searches Triggered . | . . . . . . . . . Construction Impeded 1 | . . . . . . . . 1 Haulers Reinforced . | . . . . . . . . . Active Scanning Responses . | . . . . . . . . . Cargo Convoy Interrupts . | . . . . . . . . . Stealth | -11 -10 -10 -9 -8 -7 -6 -5 -4 --------- Run | Jun Mat Min Mat Mat Fac Fac Fac Fac Distress Signals 11 | . . . 3 4 . . . 4 Communications Jammed . | . . . . . . . . . Distress Signals . | . . . . . . . . . Times Spotted 142 | . . . 36 29 . 21 14 42 Peak Tracking Total 8 | . . . 7 8 . 5 6 8 Tactical Retreats 9 | . . . 5 2 . . 1 1 Traps | -11 -10 -10 -9 -8 -7 -6 -5 -4 ------- Run | Jun Mat Min Mat Mat Fac Fac Fac Fac Traps Triggered 5 | . . . 1 2 . 2 . . Indirectly . | . . . . . . . . . Trap Hack Attempts . | . . . . . . . . . Triggered . | . . . . . . . . . Disarmed . | . . . . . . . . . Reprogrammed . | . . . . . . . . . Reused . | . . . . . . . . . Traps Extracted . | . . . . . . . . . Installed . | . . . . . . . . . Triggered . | . . . . . . . . . Machines | -11 -10 -10 -9 -8 -7 -6 -5 -4 ---------- Run | Jun Mat Min Mat Mat Fac Fac Fac Fac Machines Disabled . | . . . . . . . . . Max in Single Turn . | . . . . . . . . . Machines Repaired . | . . . . . . . . . Machines Sabotaged . | . . . . . . . . . Overloaded Fab Kills . | . . . . . . . . . Hacking | -11 -10 -10 -9 -8 -7 -6 -5 -4 --------- Run | Jun Mat Min Mat Mat Fac Fac Fac Fac Machines Accessed 4 | . . . . 2 . 1 1 . Terminals 2 | . . . . 2 . . . . Fabricators . | . . . . . . . . . Repair Stations 1 | . . . . . . . 1 . Recycling Units . | . . . . . . . . . Scanalyzers . | . . . . . . . . . Garrison Access 1 | . . . . . . 1 . . Total Hacks 7 | . . . . 2 . 3 2 . Successful 1 | . . . . 1 . . . . Failed 6 | . . . . 1 . 3 2 . Catastrophic 3 | . . . . 1 . 1 1 . Database Lockouts . | . . . . . . . . . Manual 1 | . . . . 1 . . . . Terminals 2 | . . . . 2 . . . . Fabricators . | . . . . . . . . . Repair Stations 2 | . . . . . . . 2 . Recycling Units . | . . . . . . . . . Scanalyzers . | . . . . . . . . . Garrison Access 3 | . . . . . . 3 . . Terminal Hacks 1 | . . . . 1 . . . . Record 1 | . . . . 1 . . . . Fabricator Hacks . | . . . . . . . . . Repair Station Hacks . | . . . . . . . . . Recycling Unit Hacks . | . . . . . . . . . Scanalyzer . | . . . . . . . . . Garrison Access Hacks . | . . . . . . . . . Unauthorized Hacks . | . . . . . . . . . Terminals . | . . . . . . . . . Fabricators . | . . . . . . . . . Repair Stations . | . . . . . . . . . Recycling Units . | . . . . . . . . . Scanalyzers . | . . . . . . . . . Garrison Access . | . . . . . . . . . Data Cores Recovered . | . . . . . . . . . Used . | . . . . . . . . . Hacking Detections 4 | . . . . 2 . 1 1 . Full Trace Events 2 | . . . . . . 1 1 . Feedback Events 1 | . . . . . . . 1 . Corruption 1 | . . . . . . . 1 . Feedback Blocked . | . . . . . . . . . Robot Schematics Acquired . | . . . . . . . . . Robots Built . | . . . . . . . . . Authchips . | . . . . . . . . . Time . | . . . . . . . . . Total Robot Build Rating . | . . . . . . . . . Part Schematics Acquired . | . . . . . . . . . Parts Built . | . . . . . . . . . Authchips . | . . . . . . . . . Time . | . . . . . . . . . Total Part Build Rating . | . . . . . . . . . Parts Repaired . | . . . . . . . . . Time . | . . . . . . . . . Parts Recycled . | . . . . . . . . . Recycled Matter . | . . . . . . . . . Retrieved Matter . | . . . . . . . . . Retrieved Components . | . . . . . . . . . Parts Scanalyzed . | . . . . . . . . . Part Schematics Acquired . | . . . . . . . . . Parts Damaged . | . . . . . . . . . Bothacking | -11 -10 -10 -9 -8 -7 -6 -5 -4 ------------ Run | Jun Mat Min Mat Mat Fac Fac Fac Fac Used RIF Installer . | . . . . . . . . . Robots Hacked 12 | . . . 2 3 . 2 1 4 Non-combat 3 | . . . . 1 . . . 2 Combat 9 | . . . 2 2 . 2 1 2 Robot Hacks Applied 20 | . . . 2 5 . 4 2 7 find_chute 1 | . . . . . . . . 1 find_terminals 1 | . . . . 1 . . . . map_route 1 | . . . . . . . . 1 mark_security 1 | . . . . . . . . 1 find_shortcuts 9 | . . . 2 2 . 2 1 2 find_garrison 7 | . . . . 2 . 2 1 2 Relay Couplers Released . | . . . . . . . . . Fabnet Peak Effective % . | . . . . . . . . . Robots Rewired . | . . . . . . . . . Allies Hacked . | . . . . . . . . . Hacks Repelled . | . . . . . . . . . Allies | -11 -10 -10 -9 -8 -7 -6 -5 -4 -------- Run | Jun Mat Min Mat Mat Fac Fac Fac Fac Total Allies . | . . . . . . . . . Largest Group . | . . . . . . . . . Highest-Rated Group . | . . . . . . . . . Highest-Rated Ally . | . . . . . . . . . Total Orders . | . . . . . . . . . Ally Attacks . | . . . . . . . . . Total Damage . | . . . . . . . . . Kills . | . . . . . . . . . Allies Corrupted . | . . . . . . . . . Allies Melted . | . . . . . . . . . Intel | -11 -10 -10 -9 -8 -7 -6 -5 -4 ------- Run | Jun Mat Min Mat Mat Fac Fac Fac Fac Robot Analysis Total 10 | . 1 . 3 2 . 1 1 2 Derelict Logs Recovered 2 | . . 2 . . . . . . Drone Launches . | . . . . . . . . . Drone Recoveries . | . . . . . . . . . Exploration | -11 -10 -10 -9 -8 -7 -6 -5 -4 ------------- Run | Jun Mat Min Mat Mat Fac Fac Fac Fac Turns Passed 4658 | 9 100 132 1818 323 190 1395 369 322 Spaces Moved 2394 | 18 89 155 520 275 117 548 320 352 Core 235 | 18 10 . 5 68 . 22 59 53 Treads 1133 | . . . 325 19 117 526 138 8 Legs 65 | . . . . 65 . . . . Wheels 422 | . 79 155 163 . . . . 25 Hover 251 | . . . . 15 . . . 236 Flight 288 | . . . 27 108 . . 123 30 Fastest Speed 32 | 50 50 80 37 37 160 50 32 32 Average Speed 108 | 50 76 80 127 69 160 155 90 57 Slowest Speed 240 | 50 80 80 160 160 160 160 160 240 Overloaded Moves . | . . . . . . . . . Propulsion Burnouts . | . . . . . . . . . Robots Hopped . | . . . . . . . . . Cave-ins Triggered . | . . . . . . . . . Exploration Rate (%) 20 | 4 12 44 37 42 6 18 8 14 Regions Visited 8 Branch Regions 1 Pre-discovered Areas . | . . . . . . . . . Known Exits Taken . | . . . . . . . . . Unknown Exits Taken 8 | 1 1 1 1 1 1 1 1 . Scrap Searched 1 | . . 1 . . . . . . Spaces Dug . | . . . . . . . . . Terrain Destroyed 6 | . . . . 2 . . . 4 Melee . | . . . . . . . . . Projectile 5 | . . . . 2 . . . 3 AOE . | . . . . . . . . . Terrain Rammed . | . . . . . . . . . Walls Destroyed . | . . . . . . . . . Machines Disabled . | . . . . . . . . . Actions | -11 -10 -10 -9 -8 -7 -6 -5 -4 --------- Run | Jun Mat Min Mat Mat Fac Fac Fac Fac Total 4090 | 17 120 162 1549 343 118 1012 366 403 Wait 1395 | . 3 . 946 32 . 407 . 7 Move 2386 | 17 88 154 519 274 116 547 319 352 Hop . | . . . . . . . . . Pick Up 1 | . . . . 1 . . . . Fast Attach . | . . . . . . . . . Attach . | . . . . . . . . . Detach . | . . . . . . . . . Swap . | . . . . . . . . . Drop . | . . . . . . . . . Fire 243 | . . . 83 35 2 53 31 39 Melee 1 | . . . . 1 . . . . Ram 18 | . . . . . . 3 10 5 Kick . | . . . . . . . . . Crush 9 | . . . 1 . . 2 6 . Escape Stasis . | . . . . . . . . . Rewire . | . . . . . . . . . Trap . | . . . . . . . . . Miscellaneous 37 | . 29 8 . . . . . . Route ------- -11/Junkyard -10/Materials -10/Mines (discovered 2 exits: [*Mat] / [*Sub]) -9/Materials -8/Materials -7/Factory -6/Factory -5/Factory -4/Factory (discovered 1 exit: [Res]) History --------- Turn | Location | Event 3 | -11/Junkyard | Discovered new exit (range 15) 10 | -11/Junkyard | Entered Materials 87 | -10/Materials | Discovered new exit (range 15) 110 | -10/Materials | Entered Mines 122 | -10/Mines | Received a Rocket Launcher from a helpful Derelict 155 | -10/Mines | Learned Materials terminal intel 171 | -10/Mines | Learned Materials stockpile data 192 | -10/Mines | Discovered new exit (range 4) 219 | -10/Mines | Discovered new exit (range 13) 242 | -10/Mines | Entered Materials 244 | -9/Materials | Loaded intel: 12 terminal locations 1850 | -9/Materials | Discovered new exit (range 4) 1974 | -9/Materials | Lost 3 parts (1p1n1w) 2036 | -9/Materials | Core integrity fell below 50% 2060 | -9/Materials | Entered another Materials area 2325 | -8/Materials | Lost 3 parts (1n2w) 2325 | -8/Materials | Discovered new exit (range 16) 2383 | -8/Materials | Entered Factory 2549 | -7/Factory | Discovered new exit (range 15) 2573 | -7/Factory | Entered another Factory area 2942 | -6/Factory | Lost 3 parts (1p1n1u) 3031 | -6/Factory | Core integrity fell below 50% 3868 | -6/Factory | Discovered new exit (range 15) 3968 | -6/Factory | Entered another Factory area 4243 | -5/Factory | Discovered new exit (range 11) 4247 | -5/Factory | Lost 6 parts (1p2n2u1w) 4337 | -5/Factory | Entered another Factory area 4337 | -4/Factory | Spotted B-86 Titan 4355 | -4/Factory | Discovered new exit (range 88) 4378 | -4/Factory | Lost 4 parts (1p2n1w) 4474 | -4/Factory | Spotted B-86 Titan 4504 | -4/Factory | Core integrity fell below 50% 4595 | -4/Factory | Lost 6 parts (1p2n1u2w) 4629 | -4/Factory | Core integrity fell below 20% 4659 | -4/Factory | Destroyed by Y-64 Sentinel with KE Penetrator Last Messages --------------- 04630_ U-05 Engineer builds a Wall. 04631_ Took control of K-01 Serf. 04631_ Acquired 100 matter. 04638_ Penetrated by Slug. 04638_ Lgt. Ion Engine destroyed. 04638_ Slug penetrates Wall. 04638_ Wheel destroyed. 04639_ Cleaned Power Conduit. 04642_ Slug penetrates Power Conduit. 04642_ K-01 Serf destroyed. 04642_ K-01 Serf collects debris. 04644_ Slug penetrates Power Conduit. 04645_ K-01 Serf collects debris. 04648_ Cleaned Power Conduit. 04648_ K-01 Serf collects debris. 04650_ Collected debris. 04650_ Wheel destroyed. 04651_ Cleaned Repair Station. 04654_ Penetrated by Slug. 04654_ Slug penetrates Wall. Map ----- +----------------------------------------------------+ | ??????# *= # """ # | | ?? " " " " # ! """ / | | ??? " " " " / """ # | | ????? " " " " !%= ####### #### | | ??????# " " " " ##+####+#?????##########??# | | ??????# " " " " ###?????? ?????????????????# | | ??????# " " " " #???????? ?????????????????# | | ??????# " " " " #???????? ?????????????????# | | ??????# " " " " ####????? ?????????????????# | | ??????# " " " " #????? ????????????????### | | ??????# #????? ???????????????????? | | ??????# ! ###????????????????????????? | | ??????# "" #????????????????????????? | | ??????# """ #????????????????????????? | | ??????# R" #????????????????????????? | | ??????# """ #????????????????????????? | | ??????# #????????????????????????? | | ??????# # #????????????????????????? | | ??????############## #????????????????????????? | | ???????????????????# u #????????????????????????? | | ???????????????????# t#????????????????????????? | | ???????????????????# #####????????????????????? | | ???????????????????# #????????????????????? | | ???????????????????# #???????????+????????? | | ???????????????????# +????????????????????? | | ???????????????????######k #????????????????????? | | ????????????????????????# #????????????????????? | | ???????????????????????? #???????????????????? | | ???????????????????????? #???????????????????? | | ??????????????????????? Y #???????????????????? | | ???????????????????????# #???????????????????? | | ???????????????????????# #???????????????????? | | ???????????????????????### ###???????????????????? | | ?????????????????????????? #?????????????????????? | | ?????????????????????????? #?????????????????????? | | ?????????????????????????? #?????????????????????? | | ?????????????????????????? ?????????????????????? | | ?????????????????????????? ?????????????????????? | | ?????????????????????????? ?????????????????????? | | ???^?????????????????????????????????????????????? | | ?????????????????????????????????????????????????? | | ?????????????????????????????????????????????????? | | ?????????????????????????????????????????????????? | | ?????????????????????????????????????????????????? | | ?????????????????????????????????????????????????? | | ?????????????????????????????????????????????????? | | ?????????????????????????????????????????????????? | | ?????????????????????????????????????????????????? | | ?????????????????????????????????????????????????? | | ?????????????????????????????????????????????????? | +----------------------------------------------------+ Best States ------------- Heat Dissipation 51 Energy Generation 26 Energy Capacity 265 Matter Stores 200 Matter Capacity 200 Sight Range 20 Robot Scan Range 16 Terrain Scan Range 16 Terrain Scan Density 10 Armor Coverage 225 Resistance: KI 25 Resistance: EX 50 Resistance: I 25 Evasion (%) 63 Targeting Accuracy 5 Recoil Reduction 2 Offensive Hacking 10 Item Schematics ----------------- None Robot Schematics ------------------ None Fabricated ------------ Nothing Alien Tech Used ----------------- None Achievements -------------- None Challenges ------------ None Polymind | -11 -10 -10 -9 -8 -7 -6 -5 -4 ---------- Run | Jun Mat Min Mat Mat Fac Fac Fac Fac Hosts 14 | . 1 . 3 3 . 2 1 4 Combat Hostiles 9 | . . . 2 2 . 2 1 2 Allies . | . . . . . . . . . Unique Host Classes 7 | . 1 . 3 2 . . . 1 Average Host Suspicion 71 | . 4 13 68 94 65 78 57 97 Unsuspicious Activity 1541 | . 147 40 889 37 . 391 . 37 Returns to Shadow 2 | . . . 1 . . 1 . . Fuzzy Dispatches 1 | . . . . . . 1 . . Protomatter Created 437 | . . . 34 65 . 132 81 125 Used 415 | . 5 . 34 62 . 102 14 198 Decayed 4 | . . . . 4 . . . . Highest Spend 74 | . 5 . 23 34 . 51 14 74 Top 5 Hosts by Kills: Y-45 Defender (-9/Materials: 17) Y-54 Guardian (-6/Factory: 10) H-55 Commando (-8/Materials: 7) Y-64 Sentinel (-4/Factory: 6) S-10 Pest (-9/Materials: 4) Game ------ Seed ChipFlightUnit Manual? 0 Play Time 00:25:27 Cumulative 104.1 hours Start 2023.10.17 @ 14:53:39 End 2023.10.17 @ 15:15:21 Sessions 1 Manual Loads 0 Difficulty Rogue Special Mode Winter2022/Polymind Game No. 110 Rogue 74 Adventurer 36 Explorer 0 Win Type - Total 7 Types 2/0/5/0/0/0/0/0/0 Lore% 51 Gallery% 72 Achievement% 61 Wizard Run 0 Options --------- ASCII 0 Keyboard 0 Movement Mouse Keybinds 0 Fullscreen 1 Font 18/SmallcapsGlow Map View 76x50 Tactical HUD 1 Map Filters NONE Filters NONE Steam 1 RUN: b4613b1d-c953-458d-b302-0ccb302e321a